bitfinex-derivatives/quotes_BTCF0:USTF0_20241213
["timestamp","ask_amount","ask_price","bid_price","bid_amount"]
[1734104715194,0.3608,100860.0,100840.0,0.59367966]
[1734104715394,0.424062,100870.0,100850.0,0.50490297]
[1734104715694,0.3745,100870.0,100860.0,0.14409797]
[1734104716089,0.0137,100870.0,100860.0,0.58659797]
[1734104717103,0.0137,100870.0,100860.0,0.66369797]
[1734104717300,0.0047,100870.0,100860.0,0.66369797]
[1734104717807,0.0137,100870.0,100860.0,0.66469797]
[1734104719001,0.0137,100870.0,100860.0,0.75922994]
[1734104719195,0.009,100870.0,100860.0,0.66469797]
[1734104719693,0.38735589,100890.0,100870.0,0.049559]
[1734104719897,0.38735589,100890.0,100870.0,0.55444797]
[1734104720091,0.38735589,100890.0,100880.0,0.09453197]
[1734104720092,0.4864983,100890.0,100880.0,0.09453197]
[1734104720293,0.4864983,100890.0,100880.0,0.049556]
[1734104720589,0.4864983,100890.0,100870.0,0.14408997]
[1734104720790,0.4864983,100890.0,100870.0,0.58169097]
[1734104721200,0.4954983,100890.0,100870.0,0.63224897]
[1734104721401,0.4954983,100890.0,100880.0,0.14408797]
[1734104721402,0.10814241,100890.0,100880.0,0.14408797]
[1734104722997,0.15769341,100890.0,100880.0,0.049556]
[1734104723904,0.049556,100880.0,100860.0,0.126664]
[1734104724199,0.410361,100870.0,100860.0,0.0771]
[1734104724507,0.50489297,100870.0,100830.0,0.0014872]
[1734104724690,0.410376,100840.0,100830.0,0.0510672]
[1734104724895,0.410376,100840.0,100830.0,0.0014872]
[1734104724896,0.50490797,100840.0,100830.0,0.0014872]
[1734104725594,0.60406513,100840.0,100830.0,0.0014872]
[1734104725992,0.60406513,100840.0,100830.0,0.0510672]
[1734104725993,0.3608,100840.0,100830.0,0.0510672]
[1734104726400,0.60407988,100840.0,100830.0,0.0014872]
[1734104726901,0.60407988,100840.0,100830.0,0.0084872]
[1734104727605,0.61007988,100840.0,100830.0,0.0014872]
[1734104729207,0.69845969,100840.0,100830.0,0.0014872]
[1734104729706,0.049588,100820.0,100810.0,0.049589]
[1734104729911,0.50491997,100820.0,100810.0,0.049589]
[1734104730113,0.86571997,100820.0,100810.0,0.049589]
[1734104730308,0.86571997,100820.0,100800.0,0.41516536]
[1734104730309,0.04959,100810.0,100800.0,0.06056697]
[1734104730605,0.50492197,100810.0,100800.0,0.06056697]
[1734104730805,0.14412197,100810.0,100800.0,0.06056697]
[1734104730995,0.24329388,100810.0,100800.0,0.06056697]
[1734104731313,0.55450388,100810.0,100780.0,0.61219917]
[1734104731507,0.3608,100790.0,100780.0,0.049603]
[1734104731805,0.50493197,100790.0,100770.0,0.0510961]
[1734104732104,0.60415308,100790.0,100770.0,0.0510961]
[1734104732305,0.410405,100780.0,100770.0,0.0944994]
[1734104733197,0.410405,100780.0,100770.0,0.0510961]
[1734104733900,0.51063596,100780.0,100770.0,0.0104881]
[1734104736102,0.65244722,100780.0,100770.0,0.0014881]
[1734104736299,0.65244722,100780.0,100770.0,0.0104881]
[1734104736503,0.65244722,100780.0,100770.0,0.009]
[1734104736813,0.04961,100770.0,100760.0,0.00012769]
[1734104737004,0.41041,100770.0,100760.0,0.00012769]
[1734104737407,0.50964096,100770.0,100760.0,0.00012769]
[1734104737902,0.51064096,100770.0,100760.0,0.00912769]
[1734104738299,0.65245222,100770.0,100760.0,0.009]
[1734104738505,0.73015222,100770.0,100760.0,0.009]
[1734104739516,0.049615,100760.0,100750.0,0.049616]
[1734104739703,0.3608,100760.0,100730.0,0.53640266]
[1734104739908,0.410421,100750.0,100740.0,0.049623]
[1734104740715,0.50967165,100750.0,100740.0,0.049623]
[1734104741205,0.049625,100740.0,100730.0,0.06325275]
[1734104741403,0.049625,100740.0,100730.0,0.049629]
[1734104741610,0.410421,100750.0,100740.0,0.049625]
[1734104742010,0.50969136,100750.0,100740.0,0.049625]
[1734104742203,0.049625,100740.0,100730.0,0.049629]
[1734104742616,0.411421,100750.0,100740.0,0.009]
[1734104743018,0.51069136,100750.0,100740.0,0.009]
[1734104743706,0.001,100740.0,100730.0,0.058626]
[1734104743902,0.050625,100740.0,100730.0,0.009]
[1734104744311,0.049625,100740.0,100720.0,0.58134688]
[1734104744508,0.049625,100740.0,100730.0,0.04963]
[1734104744703,0.001,100750.0,100740.0,0.049625]
[1734104744904,0.001,100750.0,100740.0,0.55223626]
[1734104745105,0.001,100750.0,100740.0,0.85223626]
[1734104745311,0.410407,100780.0,100760.0,0.099227]
[1734104745626,0.410407,100780.0,100760.0,0.19142326]
[1734104745808,0.410407,100780.0,100760.0,0.049612]
[1734104746401,0.410407,100780.0,100760.0,0.410412]
[1734104746616,0.04961,100770.0,100760.0,0.003]
[1734104746805,0.55222126,100770.0,100760.0,0.003]
[1734104747205,0.65146206,100770.0,100760.0,0.003]
[1734104747406,0.73116206,100770.0,100760.0,0.003]
[1734104748318,0.5893508,100770.0,100760.0,0.003]
[1734104749012,0.049615,100760.0,100750.0,0.049619]
[1734104749217,0.410415,100760.0,100750.0,0.049619]
[1734104750509,0.410415,100760.0,100750.0,0.058619]
[1734104750825,0.411415,100760.0,100750.0,0.009]
[1734104751009,0.51066565,100760.0,100750.0,0.009]
[1734104751411,0.65247691,100760.0,100750.0,0.009]
[1734104751609,0.58706565,100760.0,100750.0,0.009]
[1734104754619,0.72887691,100760.0,100750.0,0.009]
[1734104755224,0.68166204,100760.0,100750.0,0.009]
[1734104756710,0.58706565,100760.0,100750.0,0.009]
[1734104758123,0.68166204,100760.0,100750.0,0.05242744]
[1734104758312,0.77004185,100760.0,100750.0,0.05242744]
[1734104759023,0.77004185,100760.0,100750.0,0.009]
[1734104759406,0.79359676,100760.0,100750.0,0.14702681]
[1734104759609,0.49979481,100760.0,100750.0,0.19664681]
[1734104759825,0.13899481,100760.0,100750.0,0.19664681]
[1734104760015,0.050615,100760.0,100750.0,0.28194681]
[1734104760216,0.13899481,100760.0,100750.0,0.28194681]
[1734104760526,0.25714611,100760.0,100750.0,0.28194681]
[1734104760728,0.13899481,100760.0,100750.0,0.28194681]
[1734104761219,0.13899481,100760.0,100750.0,0.18735042]
[1734104761434,0.61794611,100760.0,100750.0,0.13773042]
[1734104761723,0.61794611,100760.0,100750.0,0.05243042]
[1734104761724,0.81179315,100760.0,100750.0,0.05243042]
[1734104762111,0.87113877,100760.0,100750.0,0.05243042]
[1734104762311,0.95253877,100760.0,100750.0,0.05243042]
[1734104762518,1.01125648,100760.0,100750.0,0.05243042]
[1734104762711,0.73979108,100760.0,100750.0,0.05243042]
[1734104763018,0.73979108,100760.0,100750.0,0.10205042]
[1734104763019,0.67708291,100760.0,100750.0,0.10205042]
[1734104763724,0.31628291,100760.0,100750.0,0.27824959]
[1734104763921,0.67708291,100760.0,100750.0,0.27824959]
[1734104764119,0.20743339,100760.0,100750.0,0.78090993]
[1734104764322,0.20743339,100760.0,100750.0,1.10195132]
[1734104764516,0.20743339,100760.0,100750.0,1.45961244]
[1734104764517,0.001,100760.0,100750.0,1.45961244]
[1734104764713,0.001,100760.0,100750.0,1.52247105]
[1734104765024,0.20643339,100770.0,100760.0,0.049615]
[1734104765317,0.67607091,100790.0,100780.0,0.049605]
[1734104765523,0.67607091,100790.0,100780.0,0.41302607]
[1734104765524,0.52834548,100790.0,100780.0,0.41302607]
[1734104765724,0.47874248,100790.0,100780.0,0.41302607]
[1734104765913,0.47874248,100790.0,100780.0,0.35056573]
[1734104766316,0.4104,100790.0,100780.0,0.17243542]
[1734104766924,0.3618,100790.0,100780.0,0.17243542]
[1734104767114,0.3618,100790.0,100780.0,0.31429576]
[1734104767313,0.4114,100790.0,100780.0,0.17243542]
[1734104767513,0.0506,100790.0,100780.0,0.12283042]
[1734104768020,0.0506,100790.0,100780.0,0.04343042]
[1734104768420,0.001,100790.0,100780.0,0.09303542]
[1734104768727,0.001,100790.0,100780.0,0.59569576]
[1734104768924,0.26566791,100810.0,100780.0,1.07382607]
[1734104769115,0.26566791,100810.0,100800.0,0.55225534]
[1734104769116,0.11794248,100810.0,100800.0,0.55225534]
[1734104769314,0.12310248,100820.0,100800.0,0.91305534]
[1734104769625,0.12310248,100820.0,100810.0,0.55225034]
[1734104769827,0.00516,100820.0,100810.0,0.55225034]
[1734104770023,0.12310248,100820.0,100810.0,0.55225034]
[1734104770217,0.00516,100820.0,100810.0,0.55225034]
[1734104770528,0.67603891,100850.0,100830.0,0.04958]
[1734104770716,0.52831348,100850.0,100830.0,0.41038]
[1734104771029,0.62750506,100850.0,100830.0,0.41038]
[1734104771613,0.049576,100840.0,100830.0,0.3608]
[1734104771816,0.410376,100840.0,100820.0,0.410384]
[1734104772017,0.410376,100840.0,100820.0,0.049584]
[1734104772209,0.41038,100830.0,100810.0,0.82602639]
[1734104772621,0.410385,100820.0,100810.0,0.41563739]
[1734104773338,0.50957658,100820.0,100810.0,0.42463739]
[1734104773720,0.14877658,100820.0,100810.0,0.47422739]
[1734104774025,0.50957658,100820.0,100810.0,0.47422739]
[1734104775127,0.50957658,100820.0,100810.0,0.05859]
[1734104775421,0.50957658,100820.0,100810.0,0.41939]
[1734104775422,0.09919158,100820.0,100810.0,0.41939]
[1734104775621,0.3608,100860.0,100820.0,0.049581]
[1734104775821,0.049563,100870.0,100850.0,0.55223034]
[1734104776016,0.09919158,100860.0,100850.0,0.19143034]
[1734104776320,0.049563,100870.0,100850.0,0.50266034]
[1734104776525,0.09916699,100860.0,100850.0,0.049568]
[1734104776714,0.50953299,100860.0,100850.0,0.049568]
[1734104776911,0.099145,100850.0,100830.0,0.049579]
[1734104777111,0.410376,100840.0,100820.0,0.573783]
[1734104777312,0.410381,100830.0,100800.0,0.3608]
[1734104777611,0.3608,100810.0,100790.0,0.6076]
[1734104777816,0.3608,100810.0,100800.0,0.049595]
[1734104778026,0.46000634,100810.0,100800.0,0.049595]
[1734104778324,0.3608,100810.0,100800.0,0.19145534]
[1734104778520,0.3608,100810.0,100800.0,0.049595]
[1734104778723,0.5294,100820.0,100800.0,0.50266034]
[1734104779031,0.54470142,100820.0,100810.0,0.04959]
[1734104779223,0.59428742,100820.0,100800.0,0.049593]
[1734104779520,0.001,100810.0,100800.0,0.56125334]
[1734104779913,0.54570142,100820.0,100800.0,0.56125334]
[1734104780115,0.59528842,100820.0,100800.0,0.20045334]
[1734104780515,0.59428842,100820.0,100800.0,0.19145334]
[1734104780715,0.001,100810.0,100800.0,0.20045334]
[1734104781624,0.001,100810.0,100800.0,0.56125334]
[1734104781818,0.001,100810.0,100800.0,0.419393]
[1734104782027,0.001,100810.0,100800.0,0.058593]
[1734104782418,0.59428742,100820.0,100800.0,0.049593]
[1734104782620,0.59528742,100820.0,100800.0,0.058593]
[1734104783120,0.04959,100810.0,100800.0,0.058593]
[1734104783319,0.05059,100810.0,100800.0,0.058593]
[1734104783524,0.41139,100810.0,100800.0,0.009]
[1734104783725,0.5105865,100810.0,100800.0,0.009]
[1734104784128,0.5906865,100810.0,100800.0,0.009]
[1734104784824,0.5906865,100810.0,100790.0,0.049599]
[1734104785020,0.5896865,100810.0,100800.0,0.009]
[1734104785420,0.049595,100800.0,100790.0,0.049599]
[1734104786126,0.0496,100790.0,100780.0,0.41297643]
[1734104786424,0.62846034,100790.0,100780.0,0.41297643]
[1734104786629,0.92846034,100790.0,100770.0,0.29498316]
[1734104786821,0.410405,100780.0,100770.0,0.29498316]
[1734104787228,0.410405,100780.0,100770.0,0.34459316]
[1734104787421,0.50963103,100780.0,100770.0,0.34459316]
[1734104788233,0.50963103,100780.0,100770.0,0.04961]
[1734104788624,0.125803,100790.0,100770.0,0.19147034]
[1734104788828,0.125803,100790.0,100770.0,0.24107434]
[1734104789029,0.22503396,100790.0,100770.0,0.19946734]
[1734104789329,0.63543796,100790.0,100770.0,0.19946734]
[1734104789629,0.049605,100780.0,100770.0,0.057607]
[1734104790028,0.410405,100780.0,100770.0,0.057607]
[1734104790331,0.410405,100780.0,100770.0,0.008]
[1734104790930,0.50963596,100780.0,100770.0,0.008]
[1734104791137,0.50963596,100780.0,100770.0,0.003]
[1734104791720,0.50963596,100780.0,100760.0,0.04969954]
[1734104791930,0.50963596,100780.0,100770.0,0.008]
[1734104791931,0.9514963,100780.0,100770.0,0.008]
[1734104792126,1.3954963,100780.0,100770.0,0.008]
[1734104792620,0.04961,100770.0,100760.0,8.654e-05]
[1734104792820,0.049615,100760.0,100750.0,0.04962]
[1734104793031,0.410415,100760.0,100750.0,0.04962]
[1734104793229,0.410415,100760.0,100740.0,0.126923]
[1734104793230,0.04962,100750.0,100740.0,0.126923]
[1734104793533,0.049625,100740.0,100730.0,0.1765502]
[1734104793726,0.410425,100740.0,100730.0,0.1765502]
[1734104794030,0.410425,100740.0,100730.0,0.17655159]
[1734104794227,0.410425,100740.0,100730.0,0.04342259]
[1734104794423,0.50969536,100740.0,100730.0,0.04342259]
[1734104795027,0.50969536,100740.0,100730.0,0.05242259]
[1734104795028,0.51069536,100740.0,100730.0,0.05242259]
[1734104795238,0.51069536,100740.0,100690.0,0.4036258]
[1734104795421,0.3608,100690.0,100660.0,0.00128]
[1734104795626,0.91311934,100670.0,100620.0,0.211262]
[1734104795843,0.3608,100640.0,100630.0,0.049679]
[1734104796030,0.3608,100640.0,100630.0,0.30956552]
[1734104796031,0.47794495,100640.0,100630.0,0.30956552]
[1734104796238,0.11714495,100640.0,100630.0,0.67036552]
[1734104796535,0.11714495,100650.0,100640.0,0.049674]
[1734104796728,0.47794495,100650.0,100640.0,0.25989052]
[1734104796925,0.3608,100650.0,100640.0,0.30956452]
[1734104797229,0.3608,100650.0,100640.0,0.25989052]
[1734104797532,4.937e-05,100650.0,100640.0,0.67036352]
[1734104798228,0.00104937,100650.0,100640.0,0.67436352]
[1734104798426,4.937e-05,100650.0,100640.0,1.05436352]
[1734104799438,4.937e-05,100650.0,100640.0,0.87553321]
[1734104800425,4.937e-05,100650.0,100640.0,1.31739355]
[1734104800631,0.55680344,100690.0,100660.0,0.049661]
[1734104800940,0.09935913,100690.0,100680.0,0.3608]
[1734104801437,0.36712447,100710.0,100680.0,0.4367]
[1734104801634,0.049644,100700.0,100690.0,0.3608]
[1734104801939,0.009,100690.0,100680.0,0.486353]
[1734104802329,0.410444,100700.0,100680.0,0.486353]
[1734104802527,0.002,100690.0,100680.0,0.486353]
[1734104802738,0.002,100690.0,100680.0,0.62821334]
[1734104803039,0.60587624,100720.0,100680.0,0.92821334]
[1734104803236,0.00099,100710.0,100700.0,0.410443]
[1734104804530,0.007,100700.0,100690.0,0.410449]
[1734104804729,0.55930434,100700.0,100680.0,0.3618]
[1734104804938,0.19150934,100690.0,100680.0,0.001]
[1734104805129,0.410449,100690.0,100660.0,0.488663]
[1734104805333,0.410456,100680.0,100660.0,0.127863]
[1734104805930,0.3608,100670.0,100660.0,0.127863]
[1734104806130,0.50977072,100680.0,100660.0,0.127863]
[1734104806333,0.410456,100680.0,100660.0,0.127863]
[1734104806543,0.46013445,100680.0,100660.0,0.127863]
[1734104807433,0.50978945,100680.0,100660.0,0.127863]
[1734104807942,0.14898945,100680.0,100660.0,0.128863]
[1734104808636,0.51278945,100680.0,100660.0,0.127863]
[1734104809236,0.049664,100660.0,100650.0,0.3608]
[1734104809641,0.410461,100670.0,100650.0,0.410468]
[1734104809841,0.09933445,100660.0,100650.0,0.410468]
[1734104810138,0.413456,100680.0,100650.0,0.3608]
[1734104810338,0.052656,100680.0,100660.0,0.41046]
[1734104810546,0.09934432,100670.0,100660.0,0.41046]
[1734104810733,0.003,100680.0,100660.0,0.3608]
[1734104810933,0.41045,100690.0,100670.0,0.049659]
[1734104811344,0.72887178,100690.0,100670.0,0.049659]
[1734104811534,0.72887178,100690.0,100660.0,0.410462]
[1734104811838,0.049655,100680.0,100660.0,0.462123]
[1734104812341,0.049655,100680.0,100670.0,0.050659]
[1734104812538,0.14898452,100680.0,100670.0,0.050659]
[1734104812738,0.09932952,100680.0,100670.0,0.050659]
[1734104812935,0.67921685,100680.0,100670.0,0.001]
[1734104813137,0.72887085,100680.0,100670.0,0.001]
[1734104813443,0.90449498,100680.0,100670.0,0.001]
[1734104813637,0.049668,100660.0,100640.0,0.049673]
[1734104813846,0.049669,100650.0,100630.0,0.649577]
[1734104814037,0.3608,100650.0,100630.0,0.207777]
[1734104814233,0.3608,100650.0,100610.0,0.49417835]
[1734104814234,0.3608,100640.0,100610.0,0.49417835]
[1734104814545,0.460163,100630.0,100610.0,0.13337535]
[1734104814740,0.41048,100630.0,100610.0,0.13337535]
[1734104814944,0.049684,100620.0,100610.0,0.05117535]
[1734104815147,0.410481,100630.0,100610.0,0.05117535]
[1734104815345,0.09938382,100620.0,100610.0,0.05117535]
[1734104815847,0.411481,100630.0,100600.0,0.8226521]
[1734104816046,0.09938382,100620.0,100600.0,0.8226521]
[1734104816339,0.3618,100630.0,100600.0,0.24276477]
[1734104816642,0.09938875,100620.0,100610.0,0.049689]
[1734104816840,0.41148,100630.0,100610.0,0.049689]
[1734104817043,0.41048,100630.0,100610.0,0.049689]
[1734104817236,0.001,100620.0,100610.0,0.052689]
[1734104817636,0.001,100620.0,100610.0,0.63257633]
[1734104817838,0.001,100620.0,100610.0,0.003]
[1734104818036,0.411484,100620.0,100610.0,0.003]
[1734104818241,0.411484,100620.0,100600.0,0.50005677]
[1734104818242,0.51386782,100620.0,100600.0,0.13925677]
[1734104818839,0.004,100620.0,100610.0,0.049689]
[1734104819035,0.004,100620.0,100610.0,0.26877633]
[1734104819434,0.004,100620.0,100610.0,0.049689]
[1734104819833,0.41048,100630.0,100610.0,0.049689]
[1734104820038,0.41048,100630.0,100610.0,0.050689]
[1734104820237,0.049684,100620.0,100610.0,0.001]
[1734104820444,0.50986875,100630.0,100610.0,0.049687]
[1734104820641,0.53642413,100630.0,100620.0,0.049684]
[1734104820837,0.3608,100630.0,100620.0,0.049684]
[1734104821044,0.58609913,100640.0,100620.0,0.049684]
[1734104821045,0.22529913,100640.0,100620.0,0.049684]
[1734104821245,0.10337888,100630.0,100620.0,0.049684]
[1734104821549,0.004,100630.0,100620.0,0.049684]
[1734104821744,0.10337888,100630.0,100620.0,0.049684]
[1734104822450,0.27900301,100630.0,100620.0,0.410484]
[1734104822637,0.10337888,100630.0,100620.0,0.410484]
[1734104822843,0.004,100630.0,100620.0,0.410484]
[1734104823841,0.17562413,100640.0,100630.0,0.049679]
[1734104824043,0.17562413,100640.0,100630.0,0.130279]
[1734104824445,0.17562413,100640.0,100630.0,0.491079]
[1734104824642,0.17562413,100640.0,100630.0,0.130279]
[1734104824839,0.17562413,100640.0,100630.0,0.491079]
[1734104825040,0.31945633,100640.0,100620.0,0.3608]
[1734104825239,0.62956633,100630.0,100610.0,0.130288]
[1734104825549,0.410484,100620.0,100610.0,0.0806]
[1734104825747,0.80519546,100620.0,100600.0,0.049692]
[1734104825938,0.80519546,100620.0,100600.0,0.410492]
[1734104826146,0.22530813,100620.0,100600.0,0.049692]
[1734104826340,0.27501782,100620.0,100600.0,0.41049]
[1734104826545,0.27501782,100620.0,100610.0,0.62957633]
[1734104826744,0.17562413,100630.0,100620.0,0.049684]
[1734104826941,0.17562413,100640.0,100620.0,0.411484]
[1734104827146,0.32525434,100640.0,100620.0,0.411484]
[1734104827346,0.17562413,100640.0,100630.0,0.049679]
[1734104827752,0.09937888,100640.0,100630.0,0.049679]
[1734104828157,0.10337888,100640.0,100630.0,0.410479]
[1734104828349,0.004,100640.0,100630.0,0.049679]
[1734104828951,0.3648,100640.0,100630.0,0.049679]
[1734104829554,0.3608,100640.0,100630.0,0.049679]
[1734104829753,0.3648,100640.0,100630.0,0.049679]
[1734104830957,0.51121373,100640.0,100630.0,0.049679]
[1734104831158,0.82567006,100640.0,100620.0,0.0801]
[1734104831351,0.77598006,100630.0,100620.0,0.0801]
[1734104831548,0.55689273,100630.0,100620.0,0.0801]
[1734104831755,0.50721373,100630.0,100620.0,0.0801]
[1734104831950,0.50721373,100630.0,100620.0,0.129784]
[1734104831951,0.60658273,100630.0,100620.0,0.129784]
[1734104832853,0.50721373,100630.0,100620.0,0.129784]
[1734104833056,0.02031373,100640.0,100620.0,0.490584]
[1734104833250,0.38111373,100640.0,100630.0,0.049679]
[1734104833451,0.004,100630.0,100620.0,0.568381]
[1734104833647,0.3648,100630.0,100620.0,0.207581]
[1734104833962,0.62956633,100630.0,100620.0,0.1579]
[1734104834153,0.72894521,100630.0,100620.0,0.0801]
[1734104834454,0.68548201,100630.0,100620.0,0.0801]
[1734104834657,0.68548201,100630.0,100620.0,0.0811]
[1734104834865,0.50985788,100630.0,100620.0,0.130784]
[1734104835065,0.46017888,100630.0,100620.0,0.130784]
[1734104835357,0.17562413,100640.0,100630.0,0.049679]
[1734104835554,0.22392709,100640.0,100630.0,0.049679]
[1734104835754,0.17562413,100640.0,100630.0,0.049679]
[1734104835950,0.58472459,100640.0,100630.0,0.049679]
[1734104836261,0.53642413,100640.0,100630.0,0.049679]
[1734104836463,0.3608,100640.0,100630.0,0.049679]
[1734104836661,0.3608,100640.0,100630.0,0.050679]
[1734104837465,0.53642413,100640.0,100630.0,0.050679]
[1734104840672,0.82769166,100640.0,100630.0,0.001]
[1734104840870,0.82769166,100640.0,100610.0,0.3608]
[1734104840871,0.049687,100620.0,100610.0,0.04347304]
[1734104841166,0.2260635,100620.0,100600.0,0.5431969]
[1734104841553,0.3608,100610.0,100600.0,0.1823969]
[1734104841756,0.1763765,100610.0,100600.0,0.1823969]
[1734104841956,0.5371765,100610.0,100600.0,0.1823969]
[1734104842162,0.3608,100610.0,100600.0,0.1823969]
[1734104842363,0.3608,100610.0,100600.0,0.04969]
[1734104842769,0.5868655,100610.0,100600.0,0.04969]
[1734104842958,0.5878655,100610.0,100600.0,0.05069]
[1734104843266,0.68726413,100610.0,100600.0,0.001]
[1734104843463,0.82948866,100610.0,100600.0,0.001]
[1734104843856,0.91248866,100610.0,100600.0,0.001]
[1734104845269,0.77026413,100610.0,100600.0,0.001]
[1734104845967,0.63757513,100610.0,100600.0,0.050694]
[1734104846165,0.3618,100610.0,100600.0,0.050694]
[1734104846367,0.3618,100610.0,100600.0,0.126894]
[1734104846566,0.001,100610.0,100600.0,0.42971853]
[1734104846772,0.001,100610.0,100600.0,0.79051853]
[1734104847162,0.001,100610.0,100600.0,0.648294]
[1734104848773,0.60342316,100610.0,100600.0,0.001]
[1734104849066,0.65311216,100610.0,100600.0,0.001]
[1734104849373,0.73661216,100610.0,100600.0,0.001]
[1734104849965,0.59438763,100610.0,100600.0,0.001]
[1734104853078,0.59438763,100610.0,100600.0,0.050694]
[1734104853270,0.59438763,100610.0,100600.0,0.001]
[1734104854783,0.46119863,100610.0,100600.0,0.050694]
[1734104854975,0.001,100610.0,100600.0,0.09418261]
[1734104855172,0.001,100610.0,100600.0,0.24898261]
[1734104855479,0.001,100610.0,100600.0,0.33008261]
[1734104855676,0.001,100610.0,100600.0,0.56765268]
[1734104856179,0.4377,100640.0,100630.0,0.049679]
[1734104856367,0.3608,100640.0,100630.0,0.049679]
[1734104856573,0.60242316,100640.0,100630.0,0.049679]
[1734104856877,0.3608,100640.0,100630.0,0.049679]
[1734104857781,0.79429206,100640.0,100630.0,0.04347343]
[1734104857981,0.04968,100630.0,100610.0,0.64784928]
[1734104858281,0.50302453,100630.0,100620.0,0.049683]
[1734104858784,0.50302453,100630.0,100620.0,0.09315771]
[1734104858785,0.460169,100630.0,100620.0,0.09315771]
[1734104859077,0.410474,100640.0,100630.0,0.049679]
[1734104859483,0.50985288,100640.0,100630.0,0.049679]
[1734104859781,0.65207741,100640.0,100630.0,0.049679]
[1734104859975,0.50985288,100640.0,100630.0,0.09315389]
[1734104860175,0.50985288,100640.0,100630.0,0.049679]
[1734104860979,0.65207741,100640.0,100630.0,0.049679]
[1734104861280,0.04968,100630.0,100620.0,0.049683]
[1734104861476,0.50302453,100630.0,100620.0,0.049683]
[1734104861975,0.460169,100630.0,100620.0,0.049683]
[1734104862278,0.460169,100630.0,100620.0,0.09315946]
[1734104862483,0.464169,100630.0,100620.0,0.09315946]
[1734104862679,0.004,100630.0,100620.0,0.09315946]
[1734104863182,0.3648,100630.0,100620.0,0.09315946]
[1734104863385,0.004,100630.0,100620.0,0.09315946]
[1734104864274,0.3648,100630.0,100620.0,0.09315946]
[1734104864487,0.004,100630.0,100620.0,0.09315946]
[1734104864877,0.004,100630.0,100620.0,0.09315971]
[1734104865581,0.004,100630.0,100620.0,0.83354852]
[1734104865783,0.47849858,100650.0,100640.0,0.049674]
[1734104865784,0.3608,100650.0,100640.0,0.049674]
[1734104865986,0.53882026,100660.0,100650.0,0.049669]
[1734104865987,0.37145468,100660.0,100650.0,0.049669]
[1734104866483,0.3608,100660.0,100650.0,0.049669]
[1734104866882,0.36215,100670.0,100660.0,0.049664]
[1734104867688,0.36215,100670.0,100660.0,0.410464]
[1734104867689,0.00135,100670.0,100660.0,0.410464]
[1734104868000,0.00135,100670.0,100660.0,0.488064]
[1734104868987,0.01035,100670.0,100660.0,0.566164]
[1734104869175,0.01035,100670.0,100660.0,1.00838853]
[1734104869382,0.00135,100670.0,100660.0,0.565164]
[1734104869584,0.00135,100670.0,100660.0,0.566164]
[1734104869780,0.00135,100670.0,100660.0,0.70838853]
[1734104869986,0.69822117,100700.0,100690.0,0.049649]
[1734104869987,0.1,100700.0,100690.0,0.049649]
[1734104870182,0.1,100700.0,100690.0,0.410449]
[1734104870589,0.1,100700.0,100690.0,0.55267353]
[1734104870894,0.76064311,100730.0,100720.0,0.049635]
[1734104870895,0.47849858,100730.0,100720.0,0.049635]
[1734104871089,0.47849858,100730.0,100710.0,0.049637]
[1734104871288,0.83895622,100740.0,100720.0,0.049635]
[1734104871493,0.09928021,100730.0,100710.0,0.50302453]
[1734104871790,0.69182458,100740.0,100720.0,0.049631]
[1734104871975,0.09928021,100730.0,100720.0,0.049631]
[1734104872181,0.10228021,100730.0,100720.0,0.049631]
[1734104872376,0.003,100730.0,100720.0,0.410431]
[1734104873880,0.46308021,100730.0,100720.0,0.049631]
[1734104874187,0.46408021,100730.0,100720.0,0.049631]
[1734104874382,0.65593774,100730.0,100700.0,0.488743]
[1734104874584,0.55266453,100710.0,100690.0,0.049649]
[1734104874796,0.3608,100700.0,100690.0,0.049649]
[1734104875091,0.3608,100700.0,100680.0,0.410453]
[1734104875292,0.50302453,100690.0,100670.0,0.0794]
[1734104875601,0.50302453,100690.0,100660.0,0.05115262]
[1734104875602,0.3608,100680.0,100660.0,0.05115262]
[1734104875982,0.410454,100680.0,100660.0,0.05115262]
[1734104876492,0.3608,100670.0,100660.0,0.05115262]
[1734104876693,0.3608,100670.0,100660.0,0.00148962]
[1734104877090,0.46013445,100670.0,100660.0,0.05115362]
[1734104877595,0.46013445,100670.0,100660.0,0.05215362]
[1734104878093,0.65201798,100670.0,100660.0,0.001]
[1734104878597,0.049665,100660.0,100630.0,0.049676]
[1734104878783,0.3608,100650.0,100630.0,0.049676]
[1734104879189,0.3608,100640.0,100630.0,0.049676]
[1734104879697,0.46016406,100640.0,100620.0,0.049682]
[1734104879990,0.50983806,100640.0,100620.0,0.049682]
[1734104880179,0.3608,100630.0,100620.0,0.049682]
[1734104880585,0.3608,100630.0,100610.0,0.639087]
[1734104880786,0.3608,100630.0,100610.0,0.562287]
[1734104881594,0.41148,100630.0,100610.0,0.562287]
[1734104881790,0.41148,100630.0,100610.0,0.410487]
[1734104882186,0.41148,100630.0,100610.0,0.049687]
[1734104882187,0.3608,100620.0,100610.0,0.049687]
[1734104882384,0.3608,100620.0,100600.0,0.149693]
[1734104883900,0.3618,100620.0,100600.0,0.150693]
[1734104884686,0.3608,100610.0,100600.0,0.150693]
[1734104884886,0.3618,100620.0,100600.0,0.150693]
[1734104885493,0.65310522,100620.0,100600.0,0.150693]
[1734104885888,0.3608,100610.0,100600.0,0.150693]
[1734104886193,0.411487,100620.0,100600.0,0.150693]
[1734104886587,0.46119863,100620.0,100600.0,0.150693]
[1734104887092,0.46019863,100620.0,100600.0,0.149693]
[1734104887290,0.001,100610.0,100600.0,0.151693]
[1734104887688,0.46019863,100620.0,100600.0,0.149693]
[1734104887886,0.55271353,100610.0,100600.0,0.102]
[1734104888491,0.410489,100610.0,100600.0,0.102]
[1734104888694,0.51088763,100610.0,100600.0,0.102]
[1734104891293,0.10039863,100610.0,100600.0,0.8236]
[1734104891485,0.001,100610.0,100600.0,1.01551853]
[1734104891689,0.410475,100640.0,100620.0,0.049683]
[1734104891887,0.43019994,100650.0,100630.0,0.049678]
[1734104892193,0.09939863,100640.0,100630.0,0.410479]
[1734104892398,0.3608,100670.0,100660.0,0.049664]